[Event "*** SCC Grand Prix: Titled Tuesday Blitz"]
[Site "Chess.com"]
[Date "2020.08.11"]
[Round "3"]
[White "tigra"]
[Black "Carnivoras"]
[Result "1-0"]
[WhiteElo "2878"]
[BlackElo "2649"]
[TimeControl "180+1"]
[EndTime "10:32:02 PDT"]
[Termination "tigra won by resignation"]

1. e4 {[%clk 0:03:00.9]} 1... g6 {[%clk 0:02:59.7]} 2. d4 {[%clk 0:02:58.3]}
2... Bg7 {[%clk 0:03:00.6]} 3. Nc3 {[%clk 0:02:58.4]} 3... d6 {[%clk 0:02:59.9]}
4. Nf3 {[%clk 0:02:54.7]} 4... Bg4 {[%clk 0:02:58.3]} 5. Be2 {[%clk 0:02:53.9]}
5... Nf6 {[%clk 0:02:57.9]} 6. Be3 {[%clk 0:02:53.5]} 6... O-O {[%clk
0:02:57.3]} 7. O-O {[%clk 0:02:53]} 7... Nc6 {[%clk 0:02:45.5]} 8. Re1 {[%clk
0:02:50.2]} 8... e5 {[%clk 0:02:38.9]} 9. d5 {[%clk 0:02:49.1]} 9... Ne7 {[%clk
0:02:37.9]} 10. h3 {[%clk 0:02:43.3]} 10... Bd7 {[%clk 0:02:37.3]} 11. Qd2
{[%clk 0:02:29.2]} 11... Nh5 {[%clk 0:02:05.3]} 12. Ng5 {[%clk 0:02:20]} 12...
Nf6 {[%clk 0:01:34.4]} 13. f4 {[%clk 0:02:18.3]} 13... exf4 {[%clk 0:01:32.6]}
14. Bxf4 {[%clk 0:02:18.5]} 14... h6 {[%clk 0:01:20.3]} 15. Nf3 {[%clk
0:02:17.4]} 15... g5 {[%clk 0:01:15.3]} 16. Bh2 {[%clk 0:01:41]} 16... Ng6
{[%clk 0:01:14.4]} 17. Nd4 {[%clk 0:01:10.6]} 17... Re8 {[%clk 0:01:06.2]} 18.
Bf1 {[%clk 0:01:09.4]} 18... Nh5 {[%clk 0:00:59.5]} 19. Nf5 {[%clk 0:01:05.5]}
19... Bxf5 {[%clk 0:00:53.3]} 20. exf5 {[%clk 0:01:06.4]} 20... Ne5 {[%clk
0:00:52.8]} 21. Re4 {[%clk 0:00:56.8]} 21... Nf6 {[%clk 0:00:52.7]} 22. Re3
{[%clk 0:00:53.6]} 22... Qd7 {[%clk 0:00:52.9]} 23. Qf2 {[%clk 0:00:48.4]} 23...
a6 {[%clk 0:00:47.7]} 24. Rae1 {[%clk 0:00:45.2]} 24... Nh7 {[%clk 0:00:45.2]}
25. Ne4 {[%clk 0:00:41]} 25... Nf6 {[%clk 0:00:43.1]} 26. Bxe5 {[%clk
0:00:20.2]} 26... dxe5 {[%clk 0:00:42.9]} 27. c4 {[%clk 0:00:18.6]} 27... Nxe4
{[%clk 0:00:40.6]} 28. Rxe4 {[%clk 0:00:19.5]} 28... Bf6 {[%clk 0:00:41]} 29.
Qd2 {[%clk 0:00:17.7]} 29... Rad8 {[%clk 0:00:40]} 30. Qf2 {[%clk 0:00:17.5]}
30... Kg7 {[%clk 0:00:38.7]} 31. Kh1 {[%clk 0:00:17.5]} 31... c6 {[%clk
0:00:36.7]} 32. Rd1 {[%clk 0:00:17.9]} 32... cxd5 {[%clk 0:00:36]} 33. cxd5
{[%clk 0:00:18.8]} 33... Qd6 {[%clk 0:00:36.3]} 34. Bc4 {[%clk 0:00:18.7]} 34...
Rc8 {[%clk 0:00:36.1]} 35. Qf3 {[%clk 0:00:18.3]} 35... Rc7 {[%clk 0:00:36.4]}
36. Qb3 {[%clk 0:00:18.2]} 36... Rec8 {[%clk 0:00:36.3]} 37. a4 {[%clk
0:00:14.1]} 37... Rc5 {[%clk 0:00:35.9]} 38. Be2 {[%clk 0:00:13.8]} 38... R8c7
{[%clk 0:00:35.6]} 39. Bf3 {[%clk 0:00:13.9]} 39... Rc2 {[%clk 0:00:34.5]} 40.
Re2 {[%clk 0:00:13.3]} 40... Rxe2 {[%clk 0:00:33.6]} 41. Bxe2 {[%clk 0:00:14.2]}
41... e4 {[%clk 0:00:34.2]} 42. Qe3 {[%clk 0:00:14.3]} 42... Re7 {[%clk
0:00:33.6]} 43. b3 {[%clk 0:00:13.8]} 43... Re5 {[%clk 0:00:32.7]} 44. Bc4
{[%clk 0:00:10.5]} 44... Re7 {[%clk 0:00:29.7]} 45. a5 {[%clk 0:00:10.2]} 45...
Re5 {[%clk 0:00:29.4]} 46. Rf1 {[%clk 0:00:05.7]} 46... Re7 {[%clk 0:00:17.1]}
47. Rd1 {[%clk 0:00:05.9]} 47... Re5 {[%clk 0:00:17.1]} 48. Rf1 {[%clk
0:00:06.2]} 48... Re7 {[%clk 0:00:17.1]} 49. Kg1 {[%clk 0:00:06.5]} 49... Re5
{[%clk 0:00:15.6]} 50. g3 {[%clk 0:00:04.2]} 50... Re7 {[%clk 0:00:15.4]} 51.
Kg2 {[%clk 0:00:04.7]} 51... Qe5 {[%clk 0:00:14.1]} 52. Rd1 {[%clk 0:00:04.2]}
52... Rd7 {[%clk 0:00:14]} 53. Re1 {[%clk 0:00:03.4]} 53... Re7 {[%clk
0:00:13.7]} 54. Rf1 {[%clk 0:00:03.1]} 54... Qd6 {[%clk 0:00:12.9]} 55. Rf2
{[%clk 0:00:03.2]} 55... Qa3 {[%clk 0:00:13]} 56. Re2 {[%clk 0:00:03.6]} 56...
Qxa5 {[%clk 0:00:13.1]} 57. d6 {[%clk 0:00:04]} 57... Rd7 {[%clk 0:00:13.4]} 58.
Rd2 {[%clk 0:00:04.7]} 58... Qxf5 {[%clk 0:00:13.1]} 59. Rd5 {[%clk 0:00:04.5]}
59... Qe6 {[%clk 0:00:12.7]} 60. Qe2 {[%clk 0:00:04.1]} 60... Qe8 {[%clk
0:00:11.7]} 61. Qe3 {[%clk 0:00:04.2]} 61... Qd8 {[%clk 0:00:11.7]} 62. Qc5
{[%clk 0:00:04.2]} 62... b6 {[%clk 0:00:10.7]} 63. Qc6 {[%clk 0:00:04.2]} 63...
b5 {[%clk 0:00:10.7]} 64. Be2 {[%clk 0:00:04]} 64... e3 {[%clk 0:00:11]} 65. Bg4
{[%clk 0:00:04.1]} 65... Ra7 {[%clk 0:00:10.2]} 66. d7 {[%clk 0:00:04.6]} 66...
Ra8 {[%clk 0:00:07.4]} 67. Rd6 {[%clk 0:00:04.9]} 67... a5 {[%clk 0:00:06.7]}
68. Rxf6 {[%clk 0:00:05.1]} 68... Qxf6 {[%clk 0:00:06]} 69. Qxa8 {[%clk
0:00:03.8]} 69... Qf2+ {[%clk 0:00:06.3]} 70. Kh1 {[%clk 0:00:04.5]} 70... Qf1+
{[%clk 0:00:05.8]} 71. Kh2 {[%clk 0:00:04.8]} 71... e2 {[%clk 0:00:06.3]} 72.
Bxe2 {[%clk 0:00:03.9]} 72... Qxe2+ {[%clk 0:00:06.3]} 73. Qg2 {[%clk
0:00:04.6]} 73... Qe7 {[%clk 0:00:05.7]} 74. Qd2 {[%clk 0:00:04.5]} 74... Qd8
{[%clk 0:00:05.7]} 75. Qd6 {[%clk 0:00:05]} 75... Kg8 {[%clk 0:00:05.2]} 76. h4
{[%clk 0:00:03.4]} 76... Kg7 {[%clk 0:00:04.7]} 77. h5 {[%clk 0:00:03.5]} 77...
Kg8 {[%clk 0:00:03.6]} 78. Kg2 {[%clk 0:00:03.9]} 78... Kg7 {[%clk 0:00:04.1]}
79. Kf2 {[%clk 0:00:04.3]} 79... a4 {[%clk 0:00:04.5]} 80. bxa4 {[%clk
0:00:04.3]} 80... bxa4 {[%clk 0:00:05.4]} 81. Qe5+ {[%clk 0:00:04.2]} 81... Kh7
{[%clk 0:00:05.2]} 82. Qe8 {[%clk 0:00:04.3]} 82... Qf6+ {[%clk 0:00:05.3]} 83.
Ke3 {[%clk 0:00:04.8]} 83... Qb6+ {[%clk 0:00:04.9]} 84. Ke4 {[%clk 0:00:05]}
84... Qc6+ {[%clk 0:00:05]} 85. Kd4 {[%clk 0:00:05.6]} 85... Qf6+ {[%clk
0:00:04.6]} 86. Kc4 {[%clk 0:00:05.8]} 86... Qc6+ {[%clk 0:00:04.8]} 87. Kb4
{[%clk 0:00:06.3]} 87... Qb6+ {[%clk 0:00:04.9]} 88. Kxa4 {[%clk 0:00:06.8]}
88... Qa6+ {[%clk 0:00:05.8]} 89. Kb4 {[%clk 0:00:07.4]} 89... Qb6+ {[%clk
0:00:06.6]} 90. Kc4 {[%clk 0:00:08]} 90... Qc6+ {[%clk 0:00:07.2]} 91. Kd4
{[%clk 0:00:08.6]} 91... Qd6+ {[%clk 0:00:07.8]} 92. Ke4 {[%clk 0:00:08.8]}
92... Qc6+ {[%clk 0:00:08]} 93. Ke5 {[%clk 0:00:09]} 93... Qc5+ {[%clk 0:00:08]}
94. Kf6 {[%clk 0:00:08.5]} 94... Qd6+ {[%clk 0:00:08.1]} 95. Kxf7 {[%clk
0:00:07.9]} 95... Qd5+ {[%clk 0:00:08.8]} 96. Qe6 {[%clk 0:00:08.2]} 96... Qg2
{[%clk 0:00:08.9]} 97. Qg6+ {[%clk 0:00:07.9]} 1-0

[Event "*** SCC Grand Prix: Titled Tuesday Blitz"]
[Site "Chess.com"]
[Date "2020.08.11"]
[Round "4"]
[White "saikrishnaReturns"]
[Black "Savva09022009"]
[Result "1-0"]
[WhiteElo "2652"]
[BlackElo "2337"]
[TimeControl "180+1"]
[EndTime "10:33:34 PDT"]
[Termination "saikrishnaReturns won by checkmate"]

1. e4 {[%clk 0:03:00.9]} 1... c6 {[%clk 0:02:59.5]} 2. Nc3 {[%clk 0:03:00.6]}
2... d5 {[%clk 0:02:57.1]} 3. Nf3 {[%clk 0:03:01.1]} 3... dxe4 {[%clk
0:02:54.6]} 4. Nxe4 {[%clk 0:03:02]} 4... Nd7 {[%clk 0:02:52.9]} 5. Bc4 {[%clk
0:03:00.8]} 5... Ngf6 {[%clk 0:02:51.4]} 6. Neg5 {[%clk 0:03:00.5]} 6... e6
{[%clk 0:02:51]} 7. Qe2 {[%clk 0:03:00.8]} 7... Bd6 {[%clk 0:02:38.2]} 8. Nxf7
{[%clk 0:02:57.7]} 8... Kxf7 {[%clk 0:02:35.8]} 9. Qxe6+ {[%clk 0:02:56.7]} 9...
Kg6 {[%clk 0:02:35.6]} 10. Qf7+ {[%clk 0:02:55.6]} 10... Kf5 {[%clk 0:02:32.5]}
11. Be6+ {[%clk 0:02:51.3]} 11... Ke4 {[%clk 0:02:28.6]} 12. d3# {[%clk
0:02:50.3]} 1-0

[Event "*** SCC Grand Prix: Titled Tuesday Blitz"]
[Site "Chess.com"]
[Date "2020.08.11"]
[Round "4"]
[White "TargetA"]
[Black "Khazieva_Elza"]
[Result "1/2-1/2"]
[WhiteElo "2592"]
[BlackElo "2333"]
[TimeControl "180+1"]
[EndTime "10:33:56 PDT"]
[Termination "Game drawn by repetition"]

1. d4 {[%clk 0:03:00.9]} 1... Nf6 {[%clk 0:02:59.9]} 2. c4 {[%clk 0:03:00.3]}
2... d6 {[%clk 0:03:00.3]} 3. Nc3 {[%clk 0:03:00.3]} 3... Bf5 {[%clk 0:03:00.9]}
4. f3 {[%clk 0:02:56.7]} 4... e5 {[%clk 0:03:00.6]} 5. d5 {[%clk 0:02:41.2]}
5... e4 {[%clk 0:03:00.3]} 6. g4 {[%clk 0:02:34.3]} 6... Nxg4 {[%clk 0:03:00]}
7. fxg4 {[%clk 0:02:33.1]} 7... Qh4+ {[%clk 0:02:59.7]} 8. Kd2 {[%clk 0:02:32]}
8... e3+ {[%clk 0:03:00.1]} 9. Kxe3 {[%clk 0:02:30.1]} 9... Qg5+ {[%clk
0:03:00]} 10. Kf2 {[%clk 0:02:15.3]} 10... Qh4+ {[%clk 0:02:59.6]} 11. Ke3
{[%clk 0:02:14.9]} 11... Qg5+ {[%clk 0:02:59.4]} 12. Kf2 {[%clk 0:02:03.4]}
12... Qh4+ {[%clk 0:02:58.7]} 13. Ke3 {[%clk 0:02:03.2]} 1/2-1/2

[Event "*** SCC Grand Prix: Titled Tuesday Blitz"]
[Site "Chess.com"]
[Date "2020.08.11"]
[Round "4"]
[White "gagtemp"]
[Black "Grieve72"]
[Result "0-1"]
[WhiteElo "1963"]
[BlackElo "2352"]
[TimeControl "180+1"]
[EndTime "10:34:31 PDT"]
[Termination "Grieve72 won by resignation"]

1. e4 {[%clk 0:03:00.9]} 1... c6 {[%clk 0:02:58.1]} 2. d4 {[%clk 0:02:59.7]}
2... d5 {[%clk 0:02:58.6]} 3. exd5 {[%clk 0:03:00.2]} 3... cxd5 {[%clk
0:02:59.5]} 4. c4 {[%clk 0:02:59.9]} 4... Nf6 {[%clk 0:02:57.1]} 5. Nc3 {[%clk
0:02:59.8]} 5... Nc6 {[%clk 0:02:57]} 6. Bg5 {[%clk 0:02:58.7]} 6... Be6 {[%clk
0:02:35.6]} 7. cxd5 {[%clk 0:02:55.3]} 7... Nxd5 {[%clk 0:02:33.2]} 8. Nf3
{[%clk 0:02:52.4]} 8... g6 {[%clk 0:02:04.9]} 9. a3 {[%clk 0:02:42.3]} 9... Bg7
{[%clk 0:02:02]} 10. Bc4 {[%clk 0:02:38.8]} 10... Nxc3 {[%clk 0:01:58.9]} 0-1

[Event "*** SCC Grand Prix: Titled Tuesday Blitz"]
[Site "Chess.com"]
[Date "2020.08.11"]
[Round "4"]
[White "volcanoexplorer"]
[Black "exoticprincess"]
[Result "1/2-1/2"]
[WhiteElo "2626"]
[BlackElo "2832"]
[TimeControl "180+1"]
[EndTime "10:35:15 PDT"]
[Termination "Game drawn by repetition"]

1. e4 {[%clk 0:03:00.9]} 1... c6 {[%clk 0:03:00.9]} 2. d4 {[%clk 0:03:01]} 2...
d5 {[%clk 0:03:01.8]} 3. exd5 {[%clk 0:03:01.1]} 3... cxd5 {[%clk 0:03:02]} 4.
Bd3 {[%clk 0:03:01.5]} 4... Nc6 {[%clk 0:03:02.6]} 5. c3 {[%clk 0:03:02]} 5...
g6 {[%clk 0:03:03.3]} 6. Nf3 {[%clk 0:03:01.4]} 6... Bg4 {[%clk 0:03:03.4]} 7.
h3 {[%clk 0:02:54]} 7... Bxf3 {[%clk 0:03:03.5]} 8. Qxf3 {[%clk 0:02:54.9]} 8...
e6 {[%clk 0:03:04.4]} 9. O-O {[%clk 0:02:47.8]} 9... Bg7 {[%clk 0:03:04.6]} 10.
Nd2 {[%clk 0:02:29.8]} 10... Nge7 {[%clk 0:03:04.7]} 11. Nb3 {[%clk 0:02:30.5]}
11... O-O {[%clk 0:03:04.3]} 12. Bf4 {[%clk 0:02:29.8]} 12... b6 {[%clk
0:03:02.8]} 13. a4 {[%clk 0:02:25.7]} 13... a6 {[%clk 0:03:01.4]} 14. Qe2 {[%clk
0:02:09.2]} 14... Qc8 {[%clk 0:03:01.7]} 15. h4 {[%clk 0:01:52.8]} 15... Re8
{[%clk 0:03:01.1]} 16. h5 {[%clk 0:01:52.1]} 16... Nf5 {[%clk 0:03:01.4]} 17.
Bxf5 {[%clk 0:01:33.7]} 17... exf5 {[%clk 0:02:58.9]} 18. Qf3 {[%clk 0:01:31.7]}
18... Qd7 {[%clk 0:02:59.1]} 19. a5 {[%clk 0:01:28.9]} 19... b5 {[%clk
0:02:56.8]} 20. Nc5 {[%clk 0:01:28.2]} 20... Qd8 {[%clk 0:02:57.2]} 21. Nb7
{[%clk 0:01:13.2]} 21... Qd7 {[%clk 0:02:57.5]} 22. Nc5 {[%clk 0:01:13]} 22...
Qd8 {[%clk 0:02:57.8]} 23. Nb7 {[%clk 0:01:12.8]} 23... Qd7 {[%clk 0:02:58.3]}
24. Nc5 {[%clk 0:01:05.9]} 1/2-1/2

[Event "*** SCC Grand Prix: Titled Tuesday Blitz"]
[Site "Chess.com"]
[Date "2020.08.11"]
[Round "4"]
[White "FedaMaster"]
[Black "mr65"]
[Result "1-0"]
[WhiteElo "2397"]
[BlackElo "2144"]
[TimeControl "180+1"]
[EndTime "10:35:15 PDT"]
[Termination "FedaMaster won by resignation"]

1. e4 {[%clk 0:03:00.9]} 1... e5 {[%clk 0:02:59.2]} 2. Nf3 {[%clk 0:02:59.2]}
2... Nc6 {[%clk 0:02:59]} 3. d4 {[%clk 0:02:59.1]} 3... exd4 {[%clk 0:02:58.3]}
4. Bc4 {[%clk 0:02:54.1]} 4... Nf6 {[%clk 0:02:56.8]} 5. O-O {[%clk 0:02:53.6]}
5... Nxe4 {[%clk 0:02:55.2]} 6. Re1 {[%clk 0:02:54.1]} 6... d5 {[%clk
0:02:54.8]} 7. Bxd5 {[%clk 0:02:55]} 7... Qxd5 {[%clk 0:02:54.6]} 8. Nc3 {[%clk
0:02:55.9]} 8... Qa5 {[%clk 0:02:53.9]} 9. Nxe4 {[%clk 0:02:56.3]} 9... Be6
{[%clk 0:02:52.7]} 10. Bg5 {[%clk 0:02:56.7]} 10... Be7 {[%clk 0:02:34]} 11.
Bxe7 {[%clk 0:02:54.1]} 11... Nxe7 {[%clk 0:02:32.3]} 12. Qxd4 {[%clk 0:02:47]}
12... O-O {[%clk 0:02:27.5]} 13. Neg5 {[%clk 0:02:36.7]} 13... Ng6 {[%clk
0:02:08.1]} 14. Nxe6 {[%clk 0:02:23.7]} 14... fxe6 {[%clk 0:02:06.6]} 15. Rxe6
{[%clk 0:02:23.8]} 15... Rad8 {[%clk 0:02:02.1]} 16. Qe3 {[%clk 0:02:13.4]}
16... Qb6 {[%clk 0:01:48.8]} 17. Rxb6 {[%clk 0:02:11.1]} 17... axb6 {[%clk
0:01:47.8]} 1-0

[Event "*** SCC Grand Prix: Titled Tuesday Blitz"]
[Site "Chess.com"]
[Date "2020.08.11"]
[Round "4"]
[White "rynos0411"]
[Black "a3aki"]
[Result "0-1"]
[WhiteElo "2348"]
[BlackElo "2087"]
[TimeControl "180+1"]
[EndTime "10:35:19 PDT"]
[Termination "a3aki won by resignation"]

1. d4 {[%clk 0:03:00.9]} 1... Nf6 {[%clk 0:02:59.2]} 2. c4 {[%clk 0:03:00.8]}
2... g6 {[%clk 0:02:59.2]} 3. Nc3 {[%clk 0:03:00.7]} 3... Bg7 {[%clk 0:02:59.6]}
4. e4 {[%clk 0:03:00.5]} 4... d6 {[%clk 0:03:00.5]} 5. h3 {[%clk 0:03:00.7]}
5... O-O {[%clk 0:02:59.4]} 6. Be3 {[%clk 0:03:00.7]} 6... e5 {[%clk 0:02:59.7]}
7. d5 {[%clk 0:02:59.9]} 7... Nh5 {[%clk 0:02:51]} 8. Be2 {[%clk 0:02:55.8]}
8... Nf4 {[%clk 0:02:49.8]} 9. Bf3 {[%clk 0:02:55.7]} 9... f5 {[%clk 0:02:48.4]}
10. g3 {[%clk 0:02:53.2]} 10... fxe4 {[%clk 0:02:48.3]} 11. Nxe4 {[%clk
0:02:52.2]} 11... Nh5 {[%clk 0:02:41.7]} 12. Bxh5 {[%clk 0:02:50.3]} 12... gxh5
{[%clk 0:02:41.7]} 13. Qxh5 {[%clk 0:02:46.5]} 13... Bf5 {[%clk 0:02:42.2]} 14.
Nc3 {[%clk 0:02:43.6]} 14... Bg6 {[%clk 0:02:37.6]} 15. Qd1 {[%clk 0:02:37.5]}
15... Nd7 {[%clk 0:02:34.2]} 16. Nge2 {[%clk 0:02:32.3]} 16... Nf6 {[%clk
0:02:33.2]} 17. Qd2 {[%clk 0:02:31.8]} 17... Ne4 {[%clk 0:02:32.5]} 18. Nxe4
{[%clk 0:02:27.8]} 18... Bxe4 {[%clk 0:02:31.9]} 19. O-O {[%clk 0:02:25.1]}
19... Qd7 {[%clk 0:02:29.8]} 20. Kh2 {[%clk 0:02:25.1]} 20... Rf6 {[%clk
0:02:25.6]} 21. Nc3 {[%clk 0:02:24.5]} 21... Bf3 {[%clk 0:02:24.7]} 22. c5
{[%clk 0:02:21.4]} 22... Raf8 {[%clk 0:02:22.2]} 23. Rac1 {[%clk 0:02:14.3]}
23... Rf5 {[%clk 0:02:17.4]} 24. cxd6 {[%clk 0:01:58.7]} 24... Rh5 {[%clk
0:02:14.3]} 25. h4 {[%clk 0:01:57.4]} 25... Rxh4+ {[%clk 0:02:08.8]} 0-1

[Event "*** SCC Grand Prix: Titled Tuesday Blitz"]
[Site "Chess.com"]
[Date "2020.08.11"]
[Round "4"]
[White "maxip32"]
[Black "LubovMarkelova"]
[Result "1-0"]
[WhiteElo "2470"]
[BlackElo "2280"]
[TimeControl "180+1"]
[EndTime "10:35:30 PDT"]
[Termination "maxip32 won by resignation"]

1. e4 {[%clk 0:03:00.9]} 1... e5 {[%clk 0:02:44.3]} 2. Nf3 {[%clk 0:03:00.4]}
2... Nc6 {[%clk 0:02:44.3]} 3. d4 {[%clk 0:02:56.6]} 3... exd4 {[%clk
0:02:43.5]} 4. Nxd4 {[%clk 0:02:57.5]} 4... Bc5 {[%clk 0:02:43.6]} 5. Nxc6
{[%clk 0:02:56.7]} 5... bxc6 {[%clk 0:02:44.5]} 6. Bd3 {[%clk 0:02:54.8]} 6...
Qh4 {[%clk 0:02:43.2]} 7. Qf3 {[%clk 0:02:34.8]} 7... Nf6 {[%clk 0:02:40.1]} 8.
Be3 {[%clk 0:02:22.4]} 8... Bxe3 {[%clk 0:02:38.6]} 9. Qxe3 {[%clk 0:02:22.1]}
9... O-O {[%clk 0:02:38.8]} 10. O-O {[%clk 0:02:03.8]} 10... Ng4 {[%clk
0:02:38.2]} 11. Qg3 {[%clk 0:02:03.2]} 11... Qxg3 {[%clk 0:02:38.3]} 12. hxg3
{[%clk 0:02:03.6]} 12... d5 {[%clk 0:02:33.9]} 13. Nc3 {[%clk 0:02:00.8]} 13...
Rb8 {[%clk 0:02:29.2]} 14. b3 {[%clk 0:01:58.8]} 14... d4 {[%clk 0:02:14.6]} 15.
Na4 {[%clk 0:01:51.8]} 15... Ne5 {[%clk 0:02:10.3]} 16. f4 {[%clk 0:01:48.7]}
16... Nxd3 {[%clk 0:02:10.2]} 17. cxd3 {[%clk 0:01:49.6]} 17... Ba6 {[%clk
0:02:09.2]} 18. Rfd1 {[%clk 0:01:48.8]} 18... Bb5 {[%clk 0:02:03.3]} 19. Nc5
{[%clk 0:01:47.7]} 1-0

[Event "*** SCC Grand Prix: Titled Tuesday Blitz"]
[Site "Chess.com"]
[Date "2020.08.11"]
[Round "4"]
[White "GukeshDommaraju"]
[Black "Aguiar94"]
[Result "1-0"]
[WhiteElo "2640"]
[BlackElo "2456"]
[TimeControl "180+1"]
[EndTime "10:35:41 PDT"]
[Termination "GukeshDommaraju won by checkmate"]

1. e4 {[%clk 0:03:00.9]} 1... c5 {[%clk 0:02:58.5]} 2. Nf3 {[%clk 0:03:00.6]}
2... e6 {[%clk 0:02:58.9]} 3. d4 {[%clk 0:03:00.4]} 3... cxd4 {[%clk 0:02:59.8]}
4. Nxd4 {[%clk 0:03:01.3]} 4... Nc6 {[%clk 0:03:00.3]} 5. Nc3 {[%clk 0:03:01.1]}
5... Qc7 {[%clk 0:03:00.7]} 6. Be3 {[%clk 0:02:59.2]} 6... a6 {[%clk 0:03:00.8]}
7. Qf3 {[%clk 0:02:58.8]} 7... Nf6 {[%clk 0:03:01.2]} 8. O-O-O {[%clk
0:02:58.4]} 8... Nxd4 {[%clk 0:03:01.6]} 9. Bxd4 {[%clk 0:02:57.9]} 9... e5
{[%clk 0:03:02.1]} 10. Be3 {[%clk 0:02:42.9]} 10... d6 {[%clk 0:03:02.3]} 11.
Bg5 {[%clk 0:02:28.6]} 11... Bg4 {[%clk 0:03:00.4]} 12. Nd5 {[%clk 0:02:28.4]}
12... Nxd5 {[%clk 0:02:58]} 13. Qxg4 {[%clk 0:02:28]} 13... Nb4 {[%clk 0:02:58]}
14. c3 {[%clk 0:02:08.5]} 14... Rc8 {[%clk 0:02:21]} 15. Kb1 {[%clk 0:01:59.7]}
15... h6 {[%clk 0:02:20.5]} 16. cxb4 {[%clk 0:01:33.5]} 16... hxg5 {[%clk
0:02:19.7]} 17. Bb5+ {[%clk 0:01:31]} 17... axb5 {[%clk 0:02:15.8]} 18. Rc1
{[%clk 0:01:31]} 18... Qb6 {[%clk 0:02:08.8]} 19. Qxc8+ {[%clk 0:01:28.2]} 19...
Ke7 {[%clk 0:02:08.8]} 20. Rc7+ {[%clk 0:01:28.2]} 20... Kf6 {[%clk 0:02:07.6]}
21. Qf5# {[%clk 0:01:28.3]} 1-0

[Event "*** SCC Grand Prix: Titled Tuesday Blitz"]
[Site "Chess.com"]
[Date "2020.08.11"]
[Round "4"]
[White "SRDR8290"]
[Black "chessdjw"]
[Result "1-0"]
[WhiteElo "2397"]
[BlackElo "2598"]
[TimeControl "180+1"]
[EndTime "10:35:44 PDT"]
[Termination "SRDR8290 won by resignation"]

1. d4 {[%clk 0:03:00.9]} 1... Nf6 {[%clk 0:02:16.8]} 2. c4 {[%clk 0:03:00.7]}
2... g6 {[%clk 0:02:14.9]} 3. Nc3 {[%clk 0:03:00.7]} 3... Bg7 {[%clk 0:02:14.8]}
4. e4 {[%clk 0:03:01.6]} 4... O-O {[%clk 0:02:14.4]} 5. Nf3 {[%clk 0:03:02.5]}
5... d6 {[%clk 0:02:14]} 6. Be2 {[%clk 0:03:03.4]} 6... e5 {[%clk 0:02:13.7]} 7.
O-O {[%clk 0:03:03.6]} 7... Nc6 {[%clk 0:02:13.8]} 8. d5 {[%clk 0:03:04.5]} 8...
Ne7 {[%clk 0:02:13.9]} 9. Ne1 {[%clk 0:03:05.4]} 9... Nd7 {[%clk 0:02:11.9]} 10.
Be3 {[%clk 0:03:05.8]} 10... f5 {[%clk 0:02:10.9]} 11. f3 {[%clk 0:03:06]} 11...
f4 {[%clk 0:02:11.2]} 12. Bf2 {[%clk 0:03:06.4]} 12... g5 {[%clk 0:02:10.6]} 13.
a4 {[%clk 0:03:07]} 13... a5 {[%clk 0:02:09.7]} 14. Nd3 {[%clk 0:03:06.4]} 14...
b6 {[%clk 0:02:09.4]} 15. b4 {[%clk 0:03:06.5]} 15... Kh8 {[%clk 0:02:04.1]} 16.
Nb5 {[%clk 0:03:01.6]} 16... Rg8 {[%clk 0:02:00.8]} 17. bxa5 {[%clk 0:02:59.2]}
17... Rxa5 {[%clk 0:01:59.9]} 18. Be1 {[%clk 0:02:59.6]} 18... Ra8 {[%clk
0:01:55.3]} 19. a5 {[%clk 0:02:59.5]} 19... Bf6 {[%clk 0:01:53.5]} 20. axb6
{[%clk 0:02:58.3]} 20... Rxa1 {[%clk 0:01:48.1]} 21. bxc7 {[%clk 0:02:39.8]}
21... Rxd1 {[%clk 0:01:33.9]} 22. cxd8=Q {[%clk 0:02:39.1]} 22... Rf8 {[%clk
0:01:34.8]} 23. Qxf8+ {[%clk 0:02:35]} 1-0

[Event "*** SCC Grand Prix: Titled Tuesday Blitz"]
[Site "Chess.com"]
[Date "2020.08.11"]
[Round "4"]
[White "SHIVACalypso"]
[Black "binbin239"]
[Result "0-1"]
[WhiteElo "2306"]
[BlackElo "2545"]
[TimeControl "180+1"]
[EndTime "10:35:57 PDT"]
[Termination "binbin239 won by resignation"]

1. Nf3 {[%clk 0:03:00.9]} 1... Nf6 {[%clk 0:03:00]} 2. c4 {[%clk 0:03:01.8]}
2... g6 {[%clk 0:02:59.4]} 3. g3 {[%clk 0:02:58.1]} 3... Bg7 {[%clk 0:02:58.7]}
4. Bg2 {[%clk 0:02:59]} 4... O-O {[%clk 0:02:58.6]} 5. O-O {[%clk 0:02:59.9]}
5... d5 {[%clk 0:02:59]} 6. d4 {[%clk 0:02:59.4]} 6... dxc4 {[%clk 0:02:59.2]}
7. Na3 {[%clk 0:02:59.6]} 7... Na6 {[%clk 0:02:59.6]} 8. Nxc4 {[%clk 0:02:58.2]}
8... c5 {[%clk 0:03:00.2]} 9. a3 {[%clk 0:02:44.6]} 9... Be6 {[%clk 0:02:58.5]}
10. Ne3 {[%clk 0:02:39.6]} 10... Nd5 {[%clk 0:02:38.8]} 11. Nxd5 {[%clk
0:02:28.5]} 11... Bxd5 {[%clk 0:02:35.8]} 12. Be3 {[%clk 0:02:21.2]} 12... Rc8
{[%clk 0:02:22.5]} 13. Rc1 {[%clk 0:02:13.3]} 13... cxd4 {[%clk 0:02:11.2]} 14.
Rxc8 {[%clk 0:02:11.5]} 14... Qxc8 {[%clk 0:02:10.5]} 15. Bxd4 {[%clk
0:02:11.8]} 15... Bxf3 {[%clk 0:02:08.6]} 16. Bxf3 {[%clk 0:02:12.7]} 16... Rd8
{[%clk 0:02:07.8]} 17. Qb3 {[%clk 0:01:18.1]} 17... Bxd4 {[%clk 0:02:04.3]} 18.
Bxb7 {[%clk 0:01:17.5]} 18... Nc5 {[%clk 0:02:01.2]} 0-1